Body Name,Service Code,Expenditure Category,Payment Date,Transaction Number,Supplier,Net Amount
Barrow Borough Council,Housing repairs control account,Housing repairs invoices,18-Feb-2021,200050457,Hughes Brothers,"17,401.05"
Barrow Borough Council,Cyclical maintenance - HRA,Electrical testing,18-Feb-2021,200050443,Keith Wilson Elec Con Ltd,"1,161.61"
Barrow Borough Council,Accelerated Towns Fund,Purchase of equipment,25-Feb-2021,200050505,AC Special Projects,"46,152.63"
Barrow Borough Council,The Well Recovery Hub,Grants,25-Feb-2021,200050576,Lee Bowron Glazing Ltd,"7,500.00"
Barrow Borough Council,Local Council Tax Reduction Scheme (LCTRS),Professional fees,04-Feb-2021,200050288,ACS Ltd,650.00
Barrow Borough Council,Emergency planning,Professional fees,11-Feb-2021,200050357,FGH Security Ltd,"2,737.19"
Barrow Borough Council,Crematorium,Equipment maintenance,04-Feb-2021,200050321,Yarl Hydracentre Ltd,818.54
Barrow Borough Council,Capitalised Planned Maintenance,Heating,18-Feb-2021,200050442,Plumbing Trade Supplies,"6,550.91"
Barrow Borough Council,Tenant demand maintenance - HRA,Gas works,11-Feb-2021,200050368,Sure Maintenance,"15,133.50"
Barrow Borough Council,Registration of electors,Printing and stationery,25-Feb-2021,200050487,Democracy Counts Ltd,805.82
Barrow Borough Council,Cemeteries,Buildings repairs and maintenance,25-Feb-2021,200050568,Growing Concerns,504.00
Barrow Borough Council,Forum 28,Buildings repairs and maintenance,25-Feb-2021,200050548,TESGL Ltd,"2,542.30"
Barrow Borough Council,The park leisure centre,Water,25-Feb-2021,200050496,Water Plus Ltd,803.05
Barrow Borough Council,Estates management,Solicitors fees,18-Feb-2021,200050444,Brown Barron Solicitors,841.25
Barrow Borough Council,Craven house,Buildings repairs and maintenance,25-Feb-2021,200050563,FTS Fire & Secuirty Ltd,725.00
Barrow Borough Council,Major works maintenance - HRA,Asbestos removal,04-Feb-2021,200050287,UK Environmental & Asbestos Solutions Ltd,"1,495.00"
Barrow Borough Council,Major works maintenance - HRA,Adaptations,11-Feb-2021,200050359,DLP Services (Northern) Ltd,"5,055.41"
Barrow Borough Council,Major works maintenance - HRA,Adaptations,18-Feb-2021,200050455,DLP Services (Northern) Ltd,918.24
Barrow Borough Council,Track and Trace,Professional fees,11-Feb-2021,200050380,James Andrews Recruitment Solutions,840.00
Barrow Borough Council,Cost of collection,Council tax collection,11-Feb-2021,200050374,Liberata Uk Ltd,"9,095.54"
Barrow Borough Council,Dock museum,Repairs and maintenance - venue,11-Feb-2021,200050353,Bespoke Joinery,610.00
Barrow Borough Council,The markets,Cleaning materials,04-Feb-2021,200050333,Terry Chemicals Ltd,613.96
Barrow Borough Council,Barrow town hall,Maintenance contracts - TSU,04-Feb-2021,200050329,TESGL Ltd,529.00
Barrow Borough Council,Cyclical maintenance - HRA,Electrical testing,11-Feb-2021,200050401,Keith Wilson Elec Con Ltd,"2,974.77"
Barrow Borough Council,Cost of collection,Council tax collection,11-Feb-2021,200050374,Liberata Uk Ltd,"2,192.50"
Barrow Borough Council,Barrow park,Buildings repairs and maintenance,25-Feb-2021,200050566,Hydrojet Plumbing & Drainage,538.02
Barrow Borough Council,Parks and open spaces,Grounds maintenance - schedule of works,25-Feb-2021,200050540,Continental Landscapes Ltd,"32,126.26"
Barrow Borough Council,Housing repairs control account,Housing repairs invoices,18-Feb-2021,200050463,Winster Homes,660.00
Barrow Borough Council,Emergency planning,Computer hardware purchase,25-Feb-2021,200050534,Akhter Computers PLC,"4,681.20"
Barrow Borough Council,Footpath Lighting,Christmas illuminations,25-Feb-2021,200050557,Optech Fibres,"8,500.00"
Barrow Borough Council,Housing Benefits Admin,Benefits council tenants,11-Feb-2021,200050374,Liberata Uk Ltd,"2,660.94"
Barrow Borough Council,Homelessness,Homeless support funding,11-Feb-2021,200050416,Redacted Information,"1,100.00"
Barrow Borough Council,Homelessness,Homeless support funding,04-Feb-2021,200050300,Redacted Information,775.00
Barrow Borough Council,Capitalised Planned Maintenance,Heating,18-Feb-2021,200050458,Sure Maintenance,"6,946.01"
Barrow Borough Council,Housing repairs control account,Housing repairs invoices,25-Feb-2021,200050499,UK Environmental & Asbestos Solutions Ltd,"1,225.00"
Barrow Borough Council,Emergency planning,Contain Outbreak Management Fund,04-Feb-2021,200050289,32West Ltd,807.50
Barrow Borough Council,Housing Benefits Admin,Benefits private tenants,11-Feb-2021,200050374,Liberata Uk Ltd,"7,522.65"
Barrow Borough Council,Barrow town hall,Building cleaning,11-Feb-2021,200050364,Associated Cleaning Contractors,530.00
Barrow Borough Council,Capitalised Planned Maintenance,Rewires,11-Feb-2021,200050370,Rexel UK Ltd,"2,506.04"
Barrow Borough Council,Capitalised Planned Maintenance,Rewires,18-Feb-2021,200050459,Rexel UK Ltd,"1,042.32"
Barrow Borough Council,Future High Street Fund,Professional fees,25-Feb-2021,200050488,Cumbria County Council,"10,414.61"
Barrow Borough Council,Playground,Parks & Playgrounds Inspections & maintenance - contract,11-Feb-2021,200050395,Continental Landscapes Ltd,"15,694.42"
Barrow Borough Council,Emergency planning,Other expenses,25-Feb-2021,200050572,Graphixsigns Ltd,926.00
Barrow Borough Council,Barrow town hall,Buildings repairs and maintenance,11-Feb-2021,200050409,FTS Fire & Secuirty Ltd,"3,324.00"
Barrow Borough Council,HRA share of CDC/NDC,External Audit fees,25-Feb-2021,200050494,Grant Thornton UK LLP,"3,936.20"
Barrow Borough Council,Disabled Facilities Grant,Grants,25-Feb-2021,200050569,TK Access Solutions Ltd,"1,790.00"
Barrow Borough Council,Major works maintenance - HRA,Adaptations,25-Feb-2021,200050498,Coram Holding Ltd,634.20
Barrow Borough Council,Major works maintenance - HRA,Adaptations,11-Feb-2021,200050359,DLP Services (Northern) Ltd,"2,677.58"
Barrow Borough Council,Barrow park,Grounds maintenance - other works,11-Feb-2021,200050419,Jacksons Timber Ltd,585.00
Barrow Borough Council,Playground,Parks & Playgrounds Repairs & Maintenance,11-Feb-2021,200050395,Continental Landscapes Ltd,558.77
Barrow Borough Council,Coast protection,CAPITA dbs fees,25-Feb-2021,200050484,Capita Property & Infrastructure Ltd,780.00
Barrow Borough Council,Public conveniences,Building cleaning,04-Feb-2021,200050316,Growing Concerns,"2,901.82"
Barrow Borough Council,Homelessness,Homeless support funding,04-Feb-2021,200050272,Redacted Information,"3,305.00"
Barrow Borough Council,Dock museum,Maintenance contracts - TSU,04-Feb-2021,200050329,TESGL Ltd,529.00
Barrow Borough Council,Playground,Parks & Playgrounds Repairs & Maintenance,11-Feb-2021,200050344,Fingerprints,"1,476.85"
Barrow Borough Council,Public health inspection,Professional fees,18-Feb-2021,200050452,Little & Caine Ltd,"1,199.66"
Barrow Borough Council,Voids maintenance - HRA,Void repairs,04-Feb-2021,200050264,Hughes Brothers,"4,469.49"
Barrow Borough Council,Tenant demand maintenance - HRA,Routine Maintenance,11-Feb-2021,200050397,Carpet Right,828.96
Barrow Borough Council,The markets,Electricity,25-Feb-2021,200050577,NPower,926.49
Barrow Borough Council,Information technology,Licences,25-Feb-2021,200050542,SoftCat Ltd,"1,476.00"
Barrow Borough Council,Capitalised Planned Maintenance,Rewires,11-Feb-2021,200050401,Keith Wilson Elec Con Ltd,"11,865.36"
Barrow Borough Council,Current assets - payments in advance,Payment in advance - GF,04-Feb-2021,200050331,HBINFO Ltd,"1,100.00"
Barrow Borough Council,Voids maintenance - HRA,Void repairs,25-Feb-2021,200050539,Howdens Joinery Ltd,"1,156.69"
Barrow Borough Council,Development control,Solicitors fees,04-Feb-2021,200050307,Brown Barron Solicitors,"1,294.25"
Barrow Borough Council,Housing repairs control account,Housing repairs invoices,11-Feb-2021,200050367,Hughes Brothers,"10,446.30"
Barrow Borough Council,Tenant demand maintenance - HRA,Gas works,18-Feb-2021,200050458,Sure Maintenance,"3,366.45"
Barrow Borough Council,Barrow park,Grounds maintenance - schedule of works,25-Feb-2021,200050540,Continental Landscapes Ltd,"21,778.70"
Barrow Borough Council,Current assets - payments in advance,Payment in advance - GF,25-Feb-2021,200050554,CIPFA Business,"3,020.00"
Barrow Borough Council,Emergency planning,Professional fees,04-Feb-2021,200050327,FGH Security Ltd,"2,737.19"
Barrow Borough Council,Forum 28,Electricity,25-Feb-2021,200050577,NPower,"3,765.49"
Barrow Borough Council,Housing repairs control account,Housing repairs invoices,04-Feb-2021,200050264,Hughes Brothers,"21,396.83"
Barrow Borough Council,The park leisure centre,Electricity,25-Feb-2021,200050577,NPower,"-1,268.80"
Barrow Borough Council,Cemeteries,Grounds maintenance - schedule of works,04-Feb-2021,200050337,Continental Landscapes Ltd,"11,079.80"
Barrow Borough Council,Estates management,Buildings repairs and maintenance,11-Feb-2021,200050402,Bill Caulfield Electrical,749.81
Barrow Borough Council,Salthouse Road Depot,Electricity,25-Feb-2021,200050577,NPower,"1,287.71"
Barrow Borough Council,HRA administration,Professional fees,04-Feb-2021,200050267,DtL Creative Ltd,900.00
Barrow Borough Council,Dock museum,Equipment purchase,11-Feb-2021,200050393,Centric Office Solutions,765.35
Barrow Borough Council,Development control,Agency staff,11-Feb-2021,200050351,G2 Recruitment Solutions,980.77
Barrow Borough Council,Information technology,Data Line Rental,04-Feb-2021,200050273,Liberata Uk Ltd,784.46
Barrow Borough Council,Capitalised Planned Maintenance,Doors and windows,18-Feb-2021,200050464,Richmond Joiners & Builders Ltd,"3,814.01"
Barrow Borough Council,Track and Trace,Professional fees,04-Feb-2021,200050278,James Andrews Recruitment Solutions,840.00
Barrow Borough Council,Track and Trace,Professional fees,25-Feb-2021,200050491,James Andrews Recruitment Solutions,840.00
Barrow Borough Council,Forum 28,Maintenance contracts - TSU,04-Feb-2021,200050329,TESGL Ltd,529.00
Barrow Borough Council,Current assets - stocks,Postage stock,25-Feb-2021,200050481,Pitney Bowes Ltd,"4,043.80"
Barrow Borough Council,Playground,Parks & Playgrounds Repairs & Maintenance,11-Feb-2021,200050395,Continental Landscapes Ltd,"3,400.00"
Barrow Borough Council,Barrow town hall,Water,11-Feb-2021,200050386,Water Plus Ltd,"3,999.73"
Barrow Borough Council,Harding Rise Business Centre,Electricity,25-Feb-2021,200050577,NPower,"1,058.19"
Barrow Borough Council,Major works maintenance - HRA,Adaptations,11-Feb-2021,200050359,DLP Services (Northern) Ltd,"3,019.95"
Barrow Borough Council,Corporate management,Professional fees,04-Feb-2021,200050289,32West Ltd,"7,295.50"
Barrow Borough Council,Cost of collection,Professional fees,04-Feb-2021,200050292,Capacity Grid,"1,701.36"
Barrow Borough Council,Disabled Facilities Grant,Grants,11-Feb-2021,200050398,Ocean Construction UK Ltd,"5,800.00"
Barrow Borough Council,Voids maintenance - HRA,Void repairs,18-Feb-2021,200050457,Hughes Brothers,"2,054.66"
Barrow Borough Council,Voids maintenance - HRA,Void repairs,18-Feb-2021,200050457,Hughes Brothers,"1,578.58"
Barrow Borough Council,Development control,Planning applications fees,04-Feb-2021,200050266,Mullberry Homes,"23,943.00"
Barrow Borough Council,Heritage Action Zone,Professional fees,04-Feb-2021,200050290,Art Gene,"5,000.00"
Barrow Borough Council,Registration of electors,Postage,25-Feb-2021,200050487,Democracy Counts Ltd,"1,022.04"
Barrow Borough Council,Emergency planning,Professional fees,25-Feb-2021,200050546,FGH Security Ltd,"2,737.19"
Barrow Borough Council,Disabled Facilities Grant,Grants,25-Feb-2021,200050574,Benchmark Building Serv UK Ltd,"4,000.00"
Barrow Borough Council,Current assets - payments in advance,Payment in advance - GF,25-Feb-2021,200050507,Northgate Public Services (UK) Ltd,"6,804.04"
Barrow Borough Council,Barrow town hall,Building cleaning,11-Feb-2021,200050364,Associated Cleaning Contractors,"4,919.75"
Barrow Borough Council,Voids maintenance - HRA,Void repairs,18-Feb-2021,200050457,Hughes Brothers,"5,198.26"
Barrow Borough Council,Major works maintenance - HRA,Adaptations,25-Feb-2021,200050492,Allison Construction,"11,831.00"
Barrow Borough Council,Forum 28,Building cleaning,11-Feb-2021,200050358,Elior UK Ltd,"2,548.70"
Barrow Borough Council,Streetcare Team,Professional fees,11-Feb-2021,200050384,APSE,"6,200.00"
Barrow Borough Council,HRA Estates,Cleaning - other,25-Feb-2021,200050551,Associated Cleaning Contractors,"3,968.65"
Barrow Borough Council,Major works maintenance - HRA,Adaptations,11-Feb-2021,200050388,Coram Holding Ltd,623.90
Barrow Borough Council,Disabled Facilities Grant,Grants,25-Feb-2021,200050569,TK Access Solutions Ltd,"1,775.00"
Barrow Borough Council,Homelessness,Homeless support funding,04-Feb-2021,200050299,Sorella Group Ltd,650.00
Barrow Borough Council,Harding Rise Business Centre,Building cleaning,11-Feb-2021,200050364,Associated Cleaning Contractors,544.00
Barrow Borough Council,Voids maintenance - HRA,Void repairs,18-Feb-2021,200050457,Hughes Brothers,"3,689.04"
Barrow Borough Council,Off street car parking,Buildings repairs and maintenance,11-Feb-2021,200050387,Direct Strike Ltd,"1,750.00"
Barrow Borough Council,Disabled Facilities Grant,Grants,04-Feb-2021,200050297,PPM Ltd,"1,241.82"
Barrow Borough Council,Accelerated Towns Fund,Professional fees,04-Feb-2021,200050270,Capita Property & Infrastructure Ltd,"28,554.31"
Barrow Borough Council,Cost of collection,Business rates collection,11-Feb-2021,200050374,Liberata Uk Ltd,"2,728.66"
Barrow Borough Council,Emergency planning,Professional fees,11-Feb-2021,200050374,Liberata Uk Ltd,825.00
Barrow Borough Council,Forum 28,Buildings repairs and maintenance,25-Feb-2021,200050561,Bill Caulfield Electrical,751.79
Barrow Borough Council,Tenant demand maintenance - HRA,Routine Maintenance,11-Feb-2021,200050431,Horrocks (NorthWest) Ltd,"12,045.00"
Barrow Borough Council,Cyclical maintenance - HRA,Gas works,18-Feb-2021,200050458,Sure Maintenance,"6,482.25"
Barrow Borough Council,Housing repairs control account,Housing repairs invoices,25-Feb-2021,200050482,Hughes Brothers,"18,265.74"
Barrow Borough Council,Housing repairs control account,Housing repairs invoices,04-Feb-2021,200050323,Cumbria Roofing Ulverston,"2,612.00"
Barrow Borough Council,Public conveniences,Water,11-Feb-2021,200050386,Water Plus Ltd,"1,205.11"
Barrow Borough Council,Development control,Agency staff,18-Feb-2021,200050468,G2 Recruitment Solutions,982.62
Barrow Borough Council,Estates management,Professional fees,04-Feb-2021,200050322,RG Parkins & Partners Ltd,"1,250.00"
Barrow Borough Council,Housing Benefits Admin,Conferences and seminars,04-Feb-2021,200050331,HBINFO Ltd,660.00
Barrow Borough Council,Tenant demand maintenance - HRA,Consultancy fees,11-Feb-2021,200050355,Progression Solicitors,"3,375.00"
Barrow Borough Council,Tenant demand maintenance - HRA,Consultancy fees,11-Feb-2021,200050343,Chris Bugler,"3,054.32"
Barrow Borough Council,Craven house,Electricity,25-Feb-2021,200050577,NPower,"9,301.05"
Barrow Borough Council,Development control,Agency staff,04-Feb-2021,200050298,G2 Recruitment Solutions,993.97
Barrow Borough Council,HRA Estates,Tenants Water Charges,11-Feb-2021,200050375,United Utilities Water Ltd,"185,291.34"
Barrow Borough Council,Disabled Facilities Grant,Grants,25-Feb-2021,200050576,Lee Bowron Glazing Ltd,"3,600.00"
Barrow Borough Council,Housing repairs control account,Housing repairs invoices,11-Feb-2021,200050410,Phoenix Cleaning Agency,"1,000.00"
Barrow Borough Council,Local Council Tax Reduction Scheme (LCTRS),LCTRS Admin,11-Feb-2021,200050374,Liberata Uk Ltd,"9,095.53"
Barrow Borough Council,Forum 28,Equipment purchase,11-Feb-2021,200050346,Spektrix Ltd,640.95
Barrow Borough Council,Estates management,Solicitors fees,11-Feb-2021,200050405,Brown Barron Solicitors,945.50
Barrow Borough Council,IR personal account,Tax deducted - CIS tax,11-Feb-2021,200050431,Horrocks (NorthWest) Ltd,"-1,240.00"
Barrow Borough Council,Allotments,Property rents,25-Feb-2021,200050543,Holker Estates Company Ltd,"2,180.50"
Barrow Borough Council,Barrow town hall,Electricity,25-Feb-2021,200050577,NPower,"2,609.20"
Barrow Borough Council,Disabled Facilities Grant,Grants,25-Feb-2021,200050486,Airey Property Developments & Adaptations,"3,865.00"
Barrow Borough Council,Salthouse Road Depot,Electricity,25-Feb-2021,200050577,NPower,"-1,097.13"
Barrow Borough Council,Barrow Town Deal,Professional fees,25-Feb-2021,200050488,Cumbria County Council,"23,984.35"
Barrow Borough Council,Tenant demand maintenance - HRA,Central overheads,11-Feb-2021,200050367,Hughes Brothers,"28,550.68"
Barrow Borough Council,Corporate management,External Audit fees,25-Feb-2021,200050494,Grant Thornton UK LLP,"15,744.80"
Barrow Borough Council,Forum 28,Water,11-Feb-2021,200050386,Water Plus Ltd,"1,805.51"
Barrow Borough Council,Forum 28,Professional fees,11-Feb-2021,200050346,Spektrix Ltd,678.37
Barrow Borough Council,Crematorium,Maintenance contracts - venue,04-Feb-2021,200050291,JCH Plumbing & Heating Ltd,545.00
Barrow Borough Council,Finance Department,Software maintenance,04-Feb-2021,200050279,Version 1,"6,607.35"
Barrow Borough Council,Harding Rise Business Centre,Water,25-Feb-2021,200050496,Water Plus Ltd,518.07
Barrow Borough Council,Cost of collection,Advertising,25-Feb-2021,200050555,Newsquest Media Group,"1,840.64"
Barrow Borough Council,Major works maintenance - HRA,Consultancy fees,11-Feb-2021,200050388,Coram Holding Ltd,645.61
Barrow Borough Council,The park leisure centre,Water,25-Feb-2021,200050496,Water Plus Ltd,"-1,114.74"
Barrow Borough Council,Current assets - payments in advance,Payment in advance - GF,25-Feb-2021,200050570,Civica UK Ltd,"12,084.12"
Barrow Borough Council,Current assets - payments in advance,Payment in advance - GF,25-Feb-2021,200050554,CIPFA Business,"3,760.00"
Barrow Borough Council,Voids maintenance - HRA,Tipping charges,18-Feb-2021,200050454,JJC Hire Ltd,995.00
Barrow Borough Council,Major works maintenance - HRA,Adaptations,11-Feb-2021,200050359,DLP Services (Northern) Ltd,"3,134.73"
Barrow Borough Council,Craven house,Building cleaning,11-Feb-2021,200050364,Associated Cleaning Contractors,595.26
Barrow Borough Council,Salthouse Road Depot,Electricity,25-Feb-2021,200050496,Water Plus Ltd,"1,412.17"
Barrow Borough Council,Capitalised Planned Maintenance,Rewires,18-Feb-2021,200050443,Keith Wilson Elec Con Ltd,"5,084.56"
Barrow Borough Council,Major works maintenance - HRA,Adaptations,11-Feb-2021,200050359,DLP Services (Northern) Ltd,803.46
Barrow Borough Council,Recycling,Professional fees,04-Feb-2021,200050276,Cumbria County Council,"4,601.00"
Barrow Borough Council,Disabled Facilities Grant,Grants,11-Feb-2021,200050345,Ian Miles,"2,230.00"
Barrow Borough Council,Planning Policy,Professional fees,11-Feb-2021,200050372,Capita Property & Infrastructure Ltd,"1,275.00"
Barrow Borough Council,The markets,Water,11-Feb-2021,200050386,Water Plus Ltd,876.67
Barrow Borough Council,Emergency planning,Professional fees,04-Feb-2021,200050327,FGH Security Ltd,"2,737.19"
Barrow Borough Council,Emergency planning,Professional fees,25-Feb-2021,200050546,FGH Security Ltd,"2,737.19"
Barrow Borough Council,Local land charges,Search fees/stamp duties,11-Feb-2021,200050377,Cumbria County Council,"3,360.00"
Barrow Borough Council,Forum 28,Planned Building repairs and maintenance,04-Feb-2021,200050306,Bill Caulfield Electrical,"2,073.60"
Barrow Borough Council,Cemeteries,Grounds maintenance - other works,04-Feb-2021,200050337,Continental Landscapes Ltd,"1,649.20"
Barrow Borough Council,Estates management,Buildings repairs and maintenance,25-Feb-2021,200050535,Jewson Ltd,879.48
Barrow Borough Council,Salthouse Road Depot,Electricity,25-Feb-2021,200050577,NPower,"1,430.09"
Barrow Borough Council,HRA administration,Professional fees,04-Feb-2021,200050267,DtL Creative Ltd,750.00
Barrow Borough Council,Current assets - payments in advance,Payment in advance - GF,25-Feb-2021,200050554,CIPFA Business,"4,595.00"
Barrow Borough Council,Democratic representation and management,Members training,25-Feb-2021,200050573,Institute of Licensing,625.00
Barrow Borough Council,Major works maintenance - HRA,Shop repairs,18-Feb-2021,200050451,Lee Bowron Glazing Ltd,"7,277.00"
Barrow Borough Council,Dock museum,Electricity,25-Feb-2021,200050577,NPower,"2,122.80"
Barrow Borough Council,Finance Department,Software maintenance,04-Feb-2021,200050313,Capita Business Services Limited,"15,779.50"
Barrow Borough Council,Democratic representation and management,Subscriptions,04-Feb-2021,200050284,Local Government Information Unit,"2,320.00"
Barrow Borough Council,Telephones Holding A/C,Telephone charges paid,18-Feb-2021,200050453,EE Ltd,"2,088.95"
Barrow Borough Council,Forum 28,Buildings repairs and maintenance,25-Feb-2021,200050561,Bill Caulfield Electrical,900.69
Barrow Borough Council,The park leisure centre,Professional fees,11-Feb-2021,200050432,Womble Bond Dickinson (UK) LLP,"1,000.00"
Barrow Borough Council,Emergency planning,Computer hardware purchase,25-Feb-2021,200050506,Probrand Ltd,"4,416.06"
Barrow Borough Council,The park leisure centre,Professional fees,04-Feb-2021,200050295,The Sport Leisure & Culture Consultancy Ltd,"8,496.87"
Barrow Borough Council,Cemeteries,Charges for services,04-Feb-2021,200050265,Dalton with Ireleth & Askam PCC,721.34
Barrow Borough Council,RTB administration - HRA,Professional fees,11-Feb-2021,200050376,Lambert Smith Hampton,700.00
Barrow Borough Council,Telephones Holding A/C,Telephone charges paid,04-Feb-2021,200050273,Liberata Uk Ltd,575.46
Barrow Borough Council,Local Council Tax Reduction Scheme (LCTRS),LCTRS Admin,11-Feb-2021,200050374,Liberata Uk Ltd,"1,795.82"
Barrow Borough Council,Housing Benefits Admin,Conferences and seminars,11-Feb-2021,200050403,Northgate Public Services (UK) Ltd,500.00
Barrow Borough Council,HRA administration,Professional fees,04-Feb-2021,200050267,DtL Creative Ltd,750.00
Barrow Borough Council,Forum 28,Cleaning materials,11-Feb-2021,200050358,Elior UK Ltd,813.40
Barrow Borough Council,The park leisure centre,Water,25-Feb-2021,200050496,Water Plus Ltd,669.47
Barrow Borough Council,Crematorium,Electricity,25-Feb-2021,200050577,NPower,"1,050.22"
Barrow Borough Council,Craven house,Buildings repairs and maintenance,11-Feb-2021,200050361,GEZE UK Ltd,732.25
Barrow Borough Council,Housing Benefits Admin,Benefits private tenants,11-Feb-2021,200050374,Liberata Uk Ltd,735.12
Barrow Borough Council,Disabled Facilities Grant,Grants,25-Feb-2021,200050569,TK Access Solutions Ltd,"4,070.00"
Barrow Borough Council,Housing repairs control account,Housing repairs invoices,18-Feb-2021,200050445,Wilko Retail Ltd,930.00
Barrow Borough Council,Major works maintenance - HRA,Adaptations,11-Feb-2021,200050359,DLP Services (Northern) Ltd,"6,948.02"
Barrow Borough Council,Marina Village,Professional fees,25-Feb-2021,200050488,Cumbria County Council,"11,634.04"
Barrow Borough Council,Local land charges,Search fees/stamp duties,11-Feb-2021,200050377,Cumbria County Council,"3,192.00"
Barrow Borough Council,Voids maintenance - HRA,Void repairs,11-Feb-2021,200050367,Hughes Brothers,509.17
Barrow Borough Council,Corporate Costs,Bank Charges,09-Feb-2021,DD090221,HSBC,786.37
Barrow Borough Council,Housing Admin,Professional fees,09-Feb-2021,DD090221,Housing Ombudsman Service,"6,089.03"
Barrow Borough Council,Emergency planning,Hardship Relief/Grant COVID,11-Feb-2021,DD110221,Spring Mount,"3,580.00"
Barrow Borough Council,Emergency planning,Hardship Relief/Grant COVID,11-Feb-2021,DD110221,Drop Zone,"30,900.00"
Barrow Borough Council,Homelessness,Homeless support funding,12-Feb-2021,DD120221,Ravenscroft Developments,752.08
Barrow Borough Council,CIS - Inland Revenue Account,CIS Tax,15-Feb-2021,DD150221,HMRC,"6,815.43"
Barrow Borough Council,Emergency planning,Hardship Relief/Grant COVID,19-Feb-2021,DD190221,Brathay Trust,"4,952.00"
Barrow Borough Council,Emergency planning,Hardship Relief/Grant COVID,23-Feb-2021,DD230221,Dalton Leisure Services Ltd,"10,500.00"
Barrow Borough Council,Emergency planning,Hardship Relief/Grant COVID,23-Feb-2021,DD230221,Barrow AFC Community Trust,"12,000.00"
Barrow Borough Council,Emergency planning,Hardship Relief/Grant COVID,23-Feb-2021,DD230221,Womens Community Matters,"5,000.00"
Barrow Borough Council,Corporate Costs,Professional fees,24-Feb-2021,DD240221,Capita Business Services Limited,"3,258.52"
Barrow Borough Council,Corporate Costs,Professional fees,26-Feb-2021,DD260221,Allpay,"2,612.04"
